[Event "Live Chess"]
[Site "Chess.com"]
[Date "2023.05.21"]
[Round "-"]
[White "gmnorfolk"]
[Black "educatedlad"]
[Result "1-0"]
[WhiteElo "2125"]
[BlackElo "1616"]
[TimeControl "300"]
[EndTime "16:37:30 PDT"]
[Termination "gmnorfolk won by resignation"]

1. d4 {[%clk 0:04:58.3]} 1... d5 {[%clk 0:04:59.2]} 2. c4 {[%clk 0:04:57.3]}
2... c6 {[%clk 0:04:58.7]} 3. cxd5 {[%clk 0:04:55.9]} 3... cxd5 {[%clk
0:04:57.1]} 4. Nc3 {[%clk 0:04:55.8]} 4... Nf6 {[%clk 0:04:56]} 5. Nf3 {[%clk
0:04:54.7]} 5... g6 {[%clk 0:04:54.5]} 6. Bf4 {[%clk 0:04:53.8]} 6... Bg7 {[%clk
0:04:53.9]} 7. e3 {[%clk 0:04:53.2]} 7... O-O {[%clk 0:04:53.5]} 8. Be2 {[%clk
0:04:52.2]} 8... Nc6 {[%clk 0:04:53.1]} 9. O-O {[%clk 0:04:51.3]} 9... Nh5
{[%clk 0:04:52.7]} 10. Bg3 {[%clk 0:04:48.5]} 10... Nxg3 {[%clk 0:04:51.9]} 11.
hxg3 {[%clk 0:04:47.8]} 11... Qb6 {[%clk 0:04:46.1]} 12. b3 {[%clk 0:04:42.2]}
12... Bg4 {[%clk 0:04:43.7]} 13. Nxd5 {[%clk 0:04:40.3]} 13... Qd8 {[%clk
0:04:37.3]} 14. Nc3 {[%clk 0:04:38.9]} 14... Re8 {[%clk 0:04:34.1]} 15. Rc1
{[%clk 0:04:36.5]} 15... Bxf3 {[%clk 0:04:31.5]} 16. Bxf3 {[%clk 0:04:35.1]}
16... Rc8 {[%clk 0:04:30]} 17. Bxc6 {[%clk 0:04:30.9]} 17... Rxc6 {[%clk
0:04:27.2]} 18. Na4 {[%clk 0:04:29.1]} 18... Ra6 {[%clk 0:04:23.1]} 19. Qe2
{[%clk 0:04:28.2]} 19... e5 {[%clk 0:04:21.3]} 20. Nc5 {[%clk 0:04:24.2]} 20...
Rc6 {[%clk 0:04:14.1]} 21. dxe5 {[%clk 0:04:21]} 21... Rxe5 {[%clk 0:04:09.9]}
22. Nxb7 {[%clk 0:04:17.2]} 22... Qb6 {[%clk 0:04:07.3]} 23. Rxc6 {[%clk
0:04:01.5]} 23... Qxc6 {[%clk 0:04:04.9]} 24. Nd8 {[%clk 0:03:58.9]} 24... Qe8
{[%clk 0:03:58.5]} 25. Rd1 {[%clk 0:03:51.9]} 25... Bf6 {[%clk 0:03:57.2]} 26.
Nb7 {[%clk 0:03:50.3]} 26... Kg7 {[%clk 0:03:55.4]} 27. Nd6 {[%clk 0:03:48.7]}
27... Qe6 {[%clk 0:03:49]} 28. Qd3 {[%clk 0:03:46.3]} 28... Be7 {[%clk
0:03:42.8]} 29. Nc4 {[%clk 0:03:42.6]} 29... Rh5 {[%clk 0:03:32.2]} 30. Qd4+
{[%clk 0:03:34.1]} 30... Bf6 {[%clk 0:03:30.3]} 31. Qxa7 {[%clk 0:03:30.3]}
31... Qe4 {[%clk 0:03:23.8]} 32. Qd7 {[%clk 0:03:20.3]} 32... Qc2 {[%clk
0:03:19.7]} 33. Qd2 {[%clk 0:03:19]} 33... Qf5 {[%clk 0:03:17.4]} 34. f3 {[%clk
0:03:11.7]} 34... Qg5 {[%clk 0:03:11.4]} 35. g4 {[%clk 0:03:07.8]} 35... Rh6
{[%clk 0:03:07.9]} 36. Qf2 {[%clk 0:02:56.8]} 36... Qb5 {[%clk 0:02:52.4]} 37.
e4 {[%clk 0:02:53.5]} 37... Bh4 {[%clk 0:02:49.2]} 38. Qd4+ {[%clk 0:02:51.5]}
38... Bf6 {[%clk 0:02:44.1]} 39. e5 {[%clk 0:02:50.1]} 39... Bh4 {[%clk
0:02:34.1]} 40. e6+ {[%clk 0:02:47.7]} 40... Bf6 {[%clk 0:02:31.4]} 41. Qb6
{[%clk 0:02:27.8]} 41... Qxb6+ {[%clk 0:02:20]} 42. Nxb6 {[%clk 0:02:26.2]}
42... fxe6 {[%clk 0:02:19.1]} 43. Nc4 {[%clk 0:02:24.1]} 43... e5 {[%clk
0:02:11.9]} 44. Nd6 {[%clk 0:02:17.4]} 44... g5 {[%clk 0:02:09.8]} 45. Ne4
{[%clk 0:02:15.9]} 45... Rg6 {[%clk 0:02:07.5]} 46. Rd6 {[%clk 0:02:13.6]} 46...
Be7 {[%clk 0:02:02.2]} 47. Rxg6+ {[%clk 0:02:11.7]} 47... hxg6 {[%clk 0:02:01]}
48. a4 {[%clk 0:02:09.5]} 48... Kf7 {[%clk 0:01:59.2]} 49. Kf2 {[%clk
0:02:05.3]} 49... Bd8 {[%clk 0:01:58.5]} 50. Ke3 {[%clk 0:02:04.8]} 50... Bb6+
{[%clk 0:01:57.3]} 51. Kd3 {[%clk 0:02:04.7]} 51... Ke6 {[%clk 0:01:55.9]} 52.
Kc4 {[%clk 0:02:04.3]} 52... Bd8 {[%clk 0:01:53.2]} 53. Kb5 {[%clk 0:02:02.7]}
53... Kd7 {[%clk 0:01:51]} 54. b4 {[%clk 0:02:00.1]} 54... Kc7 {[%clk
0:01:50.1]} 55. Kc4 {[%clk 0:01:57.2]} 55... Kb6 {[%clk 0:01:49.1]} 56. a5+
{[%clk 0:01:55.5]} 56... Ka6 {[%clk 0:01:48.2]} 57. Kd5 {[%clk 0:01:53.7]} 57...
Kb5 {[%clk 0:01:44.2]} 58. Kxe5 {[%clk 0:01:49.5]} 58... Kxb4 {[%clk 0:01:43.3]}
59. a6 {[%clk 0:01:46.2]} 59... Bc7+ {[%clk 0:01:39]} 60. Kf6 {[%clk 0:01:44.1]}
60... Bb6 {[%clk 0:01:32.3]} 61. Kxg5 {[%clk 0:01:42.6]} 61... Ka5 {[%clk
0:01:31.8]} 62. Kxg6 {[%clk 0:01:41.4]} 62... Kxa6 {[%clk 0:01:31.1]} 63. f4
{[%clk 0:01:40.9]} 1-0

[Event "Live Chess"]
[Site "Chess.com"]
[Date "2023.05.21"]
[Round "-"]
[White "KeithArkell"]
[Black "Olisingapore"]
[Result "1-0"]
[WhiteElo "2612"]
[BlackElo "1824"]
[TimeControl "300"]
[EndTime "16:38:00 PDT"]
[Termination "KeithArkell won by resignation"]

1. d4 {[%clk 0:04:56.5]} 1... Nf6 {[%clk 0:04:58.7]} 2. Nf3 {[%clk 0:04:55.7]}
2... d5 {[%clk 0:04:58.1]} 3. c4 {[%clk 0:04:55.1]} 3... c5 {[%clk 0:04:55.9]}
4. cxd5 {[%clk 0:04:54.2]} 4... Nxd5 {[%clk 0:04:53.7]} 5. Nc3 {[%clk
0:04:53.3]} 5... Nxc3 {[%clk 0:04:47.2]} 6. bxc3 {[%clk 0:04:52.3]} 6... cxd4
{[%clk 0:04:46]} 7. cxd4 {[%clk 0:04:51.7]} 7... e6 {[%clk 0:04:45.6]} 8. e3
{[%clk 0:04:48.9]} 8... Bb4+ {[%clk 0:04:44]} 9. Bd2 {[%clk 0:04:48.2]} 9... Qa5
{[%clk 0:04:42.3]} 10. Bxb4 {[%clk 0:04:46.7]} 10... Qxb4+ {[%clk 0:04:41.2]}
11. Qd2 {[%clk 0:04:46.2]} 11... Qxd2+ {[%clk 0:04:39.9]} 12. Kxd2 {[%clk
0:04:46.1]} 12... O-O {[%clk 0:04:38.6]} 13. Bd3 {[%clk 0:04:45]} 13... Nc6
{[%clk 0:04:38.3]} 14. Rab1 {[%clk 0:04:42.2]} 14... Bd7 {[%clk 0:04:37.2]} 15.
Rxb7 {[%clk 0:04:40.1]} 15... Rfd8 {[%clk 0:04:33.4]} 16. Rc1 {[%clk 0:04:38.1]}
16... Na5 {[%clk 0:04:30.1]} 17. Rbc7 {[%clk 0:04:33.5]} 17... Rab8 {[%clk
0:04:01.6]} 18. Rxa7 {[%clk 0:04:31.5]} 18... Rb2+ {[%clk 0:04:00.2]} 19. Rc2
{[%clk 0:04:30.6]} 19... Rxc2+ {[%clk 0:03:58.4]} 20. Kxc2 {[%clk 0:04:28.3]}
20... Rc8+ {[%clk 0:03:53.5]} 21. Kd2 {[%clk 0:04:26.4]} 21... Nc6 {[%clk
0:03:51.6]} 22. Rxd7 {[%clk 0:04:24.7]} 22... Nb4 {[%clk 0:03:47.5]} 23. a3
{[%clk 0:04:20]} 23... Nd5 {[%clk 0:03:45.3]} 24. Ne5 {[%clk 0:04:15.5]} 24...
Nf6 {[%clk 0:03:42.8]} 25. Ra7 {[%clk 0:04:12.6]} 25... Rb8 {[%clk 0:03:36.3]}
26. Nc6 {[%clk 0:04:08.6]} 26... Rc8 {[%clk 0:03:34.4]} 27. Ne7+ {[%clk
0:04:07.4]} 1-0

[Event "Live Chess"]
[Site "Chess.com"]
[Date "2023.05.21"]
[Round "-"]
[White "domrobson"]
[Black "Doge_Dandolo"]
[Result "1-0"]
[WhiteElo "1784"]
[BlackElo "1996"]
[TimeControl "300"]
[EndTime "16:38:06 PDT"]
[Termination "domrobson won by resignation"]

1. d4 {[%clk 0:04:59.4]} 1... d5 {[%clk 0:04:57.3]} 2. c4 {[%clk 0:04:58.8]}
2... c6 {[%clk 0:04:56]} 3. Nf3 {[%clk 0:04:58.2]} 3... Nf6 {[%clk 0:04:54.7]}
4. Nc3 {[%clk 0:04:57.5]} 4... a6 {[%clk 0:04:53.6]} 5. Bg5 {[%clk 0:04:56.9]}
5... Ne4 {[%clk 0:04:50.1]} 6. Nxe4 {[%clk 0:04:55.4]} 6... dxe4 {[%clk
0:04:49]} 7. Nd2 {[%clk 0:04:54.8]} 7... Bf5 {[%clk 0:04:46.5]} 8. e3 {[%clk
0:04:51]} 8... Qb6 {[%clk 0:04:37.5]} 9. Rb1 {[%clk 0:04:45.4]} 9... Nd7 {[%clk
0:04:32.3]} 10. g4 {[%clk 0:04:42]} 10... Bg6 {[%clk 0:04:30]} 11. Bg2 {[%clk
0:04:41.2]} 11... h6 {[%clk 0:04:23.8]} 12. Bf4 {[%clk 0:04:39.2]} 12... e5
{[%clk 0:04:15]} 13. dxe5 {[%clk 0:04:33.4]} 13... Bb4 {[%clk 0:04:11.6]} 14.
O-O {[%clk 0:04:29.8]} 14... Rd8 {[%clk 0:04:08]} 15. Nxe4 {[%clk 0:04:26.4]}
15... O-O {[%clk 0:04:03.7]} 16. Qb3 {[%clk 0:04:12]} 16... Rfe8 {[%clk
0:03:54.4]} 17. a3 {[%clk 0:04:07]} 17... Bc5 {[%clk 0:03:50.5]} 18. Nxc5 {[%clk
0:04:05.1]} 18... Qxc5 {[%clk 0:03:45.9]} 19. Rbd1 {[%clk 0:04:02.6]} 19... b5
{[%clk 0:03:43.2]} 20. cxb5 {[%clk 0:04:00.5]} 20... cxb5 {[%clk 0:03:40.9]} 21.
Rd5 {[%clk 0:03:56.1]} 21... Qc6 {[%clk 0:03:33.1]} 22. Rfd1 {[%clk 0:03:54.8]}
22... Bc2 {[%clk 0:03:28.1]} 23. Rxd7 {[%clk 0:03:46.7]} 23... Rxd7 {[%clk
0:03:23.5]} 24. Rxd7 {[%clk 0:03:34.8]} 24... Qxg2+ {[%clk 0:03:15.5]} 25. Kxg2
{[%clk 0:03:33.7]} 25... Bxb3 {[%clk 0:03:15.1]} 26. Ra7 {[%clk 0:03:31.5]}
26... Bd5+ {[%clk 0:03:11.2]} 27. f3 {[%clk 0:03:29.5]} 27... Ra8 {[%clk
0:03:09.6]} 28. Rxa8+ {[%clk 0:03:27.8]} 28... Bxa8 {[%clk 0:03:08.6]} 29. b4
{[%clk 0:03:27]} 29... g6 {[%clk 0:03:06.5]} 30. e4 {[%clk 0:03:25.5]} 30... h5
{[%clk 0:03:02.7]} 31. gxh5 {[%clk 0:03:23.7]} 31... gxh5 {[%clk 0:03:01.7]} 32.
Kg3 {[%clk 0:03:23.3]} 32... Kg7 {[%clk 0:03:01.1]} 33. Kh4 {[%clk 0:03:22.7]}
33... Kg6 {[%clk 0:03:00.5]} 34. Be3 {[%clk 0:03:18.6]} 34... Bc6 {[%clk
0:02:58.5]} 35. Kg3 {[%clk 0:03:15]} 35... Bd7 {[%clk 0:02:55.4]} 36. f4 {[%clk
0:03:11.7]} 36... f6 {[%clk 0:02:50.7]} 37. f5+ {[%clk 0:03:09.9]} 37... Kf7
{[%clk 0:02:49.6]} 38. e6+ {[%clk 0:03:09.1]} 38... Bxe6 {[%clk 0:02:48.5]} 39.
fxe6+ {[%clk 0:03:07.7]} 39... Kxe6 {[%clk 0:02:48.1]} 40. Kf4 {[%clk 0:03:07]}
1-0

[Event "Live Chess"]
[Site "Chess.com"]
[Date "2023.05.21"]
[Round "-"]
[White "SupremeTactician"]
[Black "Biranidun"]
[Result "1-0"]
[WhiteElo "2337"]
[BlackElo "2654"]
[TimeControl "300"]
[EndTime "16:38:08 PDT"]
[Termination "SupremeTactician won on time"]

1. e4 {[%clk 0:04:59.5]} 1... c5 {[%clk 0:04:58.6]} 2. Nf3 {[%clk 0:04:58.4]}
2... d6 {[%clk 0:04:57.4]} 3. d4 {[%clk 0:04:57.6]} 3... cxd4 {[%clk 0:04:57.3]}
4. Nxd4 {[%clk 0:04:57.1]} 4... Nf6 {[%clk 0:04:57]} 5. f3 {[%clk 0:04:56.8]}
5... e5 {[%clk 0:04:55.1]} 6. Nb3 {[%clk 0:04:56]} 6... d5 {[%clk 0:04:54.8]} 7.
Bg5 {[%clk 0:04:54]} 7... d4 {[%clk 0:04:51.8]} 8. c3 {[%clk 0:04:52.6]} 8...
Nc6 {[%clk 0:04:51.2]} 9. Bb5 {[%clk 0:04:47]} 9... h6 {[%clk 0:04:35.6]} 10.
Bxf6 {[%clk 0:04:45.3]} 10... Qxf6 {[%clk 0:04:35.5]} 11. Bxc6+ {[%clk
0:04:44.2]} 11... bxc6 {[%clk 0:04:34.7]} 12. cxd4 {[%clk 0:04:43.4]} 12... Bb4+
{[%clk 0:04:32.9]} 13. Nc3 {[%clk 0:04:42.2]} 13... Ba6 {[%clk 0:04:11.2]} 14.
a3 {[%clk 0:04:28.6]} 14... Bd6 {[%clk 0:04:06]} 15. d5 {[%clk 0:03:45.6]} 15...
Qg5 {[%clk 0:03:51.4]} 16. Qd2 {[%clk 0:03:38.4]} 16... Rb8 {[%clk 0:03:43.7]}
17. dxc6 {[%clk 0:02:45.6]} 17... Rxb3 {[%clk 0:03:04.3]} 18. Qxd6 {[%clk
0:02:42.6]} 18... Rxb2 {[%clk 0:02:51]} 19. f4 {[%clk 0:02:26.7]} 19... exf4
{[%clk 0:02:25.4]} 20. O-O-O {[%clk 0:02:16.5]} 20... Rb3 {[%clk 0:02:03.7]} 21.
Qd7+ {[%clk 0:02:09.8]} 21... Kf8 {[%clk 0:02:02.7]} 22. Qd8+ {[%clk 0:01:59.5]}
22... Qxd8 {[%clk 0:02:01.4]} 23. Rxd8+ {[%clk 0:01:59.4]} 23... Ke7 {[%clk
0:02:01.2]} 24. Rxh8 {[%clk 0:01:58.9]} 24... Rxc3+ {[%clk 0:02:00.7]} 25. Kb2
{[%clk 0:01:52.8]} 25... Rxc6 {[%clk 0:01:59.7]} 26. Rd1 {[%clk 0:01:51.2]}
26... Rb6+ {[%clk 0:01:51.7]} 27. Kc3 {[%clk 0:01:49.9]} 27... Rc6+ {[%clk
0:01:34.9]} 28. Kb4 {[%clk 0:01:48.9]} 28... Rc4+ {[%clk 0:01:27.3]} 29. Ka5
{[%clk 0:01:48.1]} 29... Bb7 {[%clk 0:01:26.6]} 30. Rhd8 {[%clk 0:01:41.2]}
30... Bc6 {[%clk 0:00:56.5]} 31. R8d4 {[%clk 0:01:30.1]} 31... Rc3 {[%clk
0:00:55.8]} 32. Kb4 {[%clk 0:01:26]} 32... Re3 {[%clk 0:00:46.3]} 33. R1d3
{[%clk 0:01:07.7]} 33... Re2 {[%clk 0:00:42]} 34. Rd2 {[%clk 0:01:03.9]} 34...
Re1 {[%clk 0:00:40.9]} 35. Kc5 {[%clk 0:01:01.1]} 35... Bxe4 {[%clk 0:00:38.6]}
36. Rd7+ {[%clk 0:01:00.3]} 36... Ke6 {[%clk 0:00:36.8]} 37. R2d6+ {[%clk
0:00:57.6]} 37... Kf5 {[%clk 0:00:30.8]} 38. Rxf7+ {[%clk 0:00:56]} 38... Kg5
{[%clk 0:00:28]} 39. Rxg7+ {[%clk 0:00:55]} 39... Kh5 {[%clk 0:00:27.6]} 40.
Rxa7 {[%clk 0:00:49.2]} 40... Rc1+ {[%clk 0:00:26]} 41. Kd4 {[%clk 0:00:46.3]}
41... Bxg2 {[%clk 0:00:25.9]} 42. Ra5+ {[%clk 0:00:42.1]} 42... Kg4 {[%clk
0:00:24.9]} 43. Rxh6 {[%clk 0:00:41.2]} 43... Rd1+ {[%clk 0:00:23.1]} 44. Ke5
{[%clk 0:00:38.8]} 44... Re1+ {[%clk 0:00:22.1]} 45. Kd4 {[%clk 0:00:34.8]}
45... Rd1+ {[%clk 0:00:21.4]} 46. Kc3 {[%clk 0:00:34.2]} 46... Kf3 {[%clk
0:00:19.4]} 47. Re5 {[%clk 0:00:31.7]} 47... Ra1 {[%clk 0:00:18]} 48. Kb3 {[%clk
0:00:30.6]} 48... Bf1 {[%clk 0:00:16.7]} 49. a4 {[%clk 0:00:27.1]} 49... Rb1+
{[%clk 0:00:16.2]} 50. Kc3 {[%clk 0:00:25.4]} 50... Ra1 {[%clk 0:00:15.4]} 51.
a5 {[%clk 0:00:24.2]} 51... Be2 {[%clk 0:00:11.8]} 52. Rf6 {[%clk 0:00:22.3]}
52... Ra3+ {[%clk 0:00:10.2]} 53. Kb4 {[%clk 0:00:21.3]} 53... Ra1 {[%clk
0:00:09.6]} 54. a6 {[%clk 0:00:20]} 54... Bxa6 {[%clk 0:00:08.5]} 55. Ref5
{[%clk 0:00:19.4]} 55... Ke3 {[%clk 0:00:06.6]} 56. Rxf4 {[%clk 0:00:18.8]}
56... Be2 {[%clk 0:00:06.2]} 57. R4f5 {[%clk 0:00:17.7]} 57... Rb1+ {[%clk
0:00:06.1]} 58. Kc3 {[%clk 0:00:17]} 58... Rc1+ {[%clk 0:00:05.7]} 59. Kb4
{[%clk 0:00:16.5]} 59... Rb1+ {[%clk 0:00:05.1]} 60. Kc5 {[%clk 0:00:16.1]}
60... Rc1+ {[%clk 0:00:04.8]} 61. Kd6 {[%clk 0:00:15.5]} 61... Rb1 {[%clk
0:00:04.6]} 62. Re5+ {[%clk 0:00:15]} 62... Kd2 {[%clk 0:00:04.5]} 63. Rfe6
{[%clk 0:00:14.4]} 63... Rb6+ {[%clk 0:00:03.7]} 64. Ke7 {[%clk 0:00:14]} 64...
Rb7+ {[%clk 0:00:03]} 65. Kf6 {[%clk 0:00:13.4]} 65... Bd3 {[%clk 0:00:02.9]}
66. Rd6 {[%clk 0:00:12.8]} 66... Kc3 {[%clk 0:00:02.4]} 67. Rc5+ {[%clk
0:00:12.4]} 67... Bc4 {[%clk 0:00:02.3]} 68. Rdc6 {[%clk 0:00:11.7]} 68... Rb4
{[%clk 0:00:01.4]} 69. Rxc4+ {[%clk 0:00:11.2]} 69... Rxc4 {[%clk 0:00:01.3]}
70. Rxc4+ {[%clk 0:00:11.1]} 70... Kxc4 {[%clk 0:00:01.2]} 71. h4 {[%clk
0:00:10.8]} 71... Kd5 {[%clk 0:00:01.1]} 72. h5 {[%clk 0:00:10.7]} 72... Kd6
{[%clk 0:00:01]} 73. h6 {[%clk 0:00:10.6]} 73... Kd7 {[%clk 0:00:00.4]} 74. h7
{[%clk 0:00:10.5]} 74... Ke8 {[%clk 0:00:00.2]} 75. h8=Q+ {[%clk 0:00:10.4]} 1-0

[Event "Live Chess"]
[Site "Chess.com"]
[Date "2023.05.21"]
[Round "-"]
[White "Hussamalhaidar"]
[Black "Tushinskiy"]
[Result "0-1"]
[WhiteElo "1039"]
[BlackElo "2174"]
[TimeControl "300"]
[EndTime "16:38:13 PDT"]
[Termination "Tushinskiy won on time"]

1. b3 {[%clk 0:04:57.1]} 1... d5 {[%clk 0:04:56.9]} 2. Bb2 {[%clk 0:04:51.6]}
2... c6 {[%clk 0:04:56.8]} 3. e3 {[%clk 0:04:49.9]} 3... Nf6 {[%clk 0:04:56.7]}
4. Nf3 {[%clk 0:04:48.2]} 4... Bf5 {[%clk 0:04:55.8]} 5. d3 {[%clk 0:04:45.4]}
5... Nbd7 {[%clk 0:04:54.8]} 6. Be2 {[%clk 0:04:44.4]} 6... Bg6 {[%clk 0:04:54]}
7. Nbd2 {[%clk 0:04:43.1]} 7... Qc7 {[%clk 0:04:53.3]} 8. c4 {[%clk 0:04:41.9]}
8... e6 {[%clk 0:04:52.4]} 9. cxd5 {[%clk 0:04:26.3]} 9... exd5 {[%clk
0:04:52.3]} 10. Qc2 {[%clk 0:04:10.6]} 10... Bd6 {[%clk 0:04:47.8]} 11. O-O-O
{[%clk 0:04:07]} 11... a5 {[%clk 0:04:44.4]} 12. a4 {[%clk 0:03:56.5]} 12... Qb8
{[%clk 0:04:39.6]} 13. Kb1 {[%clk 0:03:44.2]} 13... O-O {[%clk 0:04:38.2]} 14.
h4 {[%clk 0:03:39.8]} 14... h5 {[%clk 0:04:36.7]} 15. Ng5 {[%clk 0:03:24.1]}
15... b5 {[%clk 0:04:34.4]} 16. f4 {[%clk 0:03:09.2]} 16... bxa4 {[%clk
0:04:32.2]} 17. bxa4 {[%clk 0:03:00.7]} 17... Qa7 {[%clk 0:04:30.9]} 18. Qxc6
{[%clk 0:02:42.3]} 18... Bb4 {[%clk 0:04:21.1]} 19. Bd4 {[%clk 0:02:28.9]} 19...
Qb8 {[%clk 0:04:19.6]} 20. Bb2 {[%clk 0:02:06.7]} 20... Rc8 {[%clk 0:04:16.4]}
21. Qb5 {[%clk 0:01:48.9]} 21... Qa7 {[%clk 0:04:15]} 22. Rh3 {[%clk 0:01:25.6]}
22... Rab8 {[%clk 0:04:12.4]} 23. Bd4 {[%clk 0:00:59.7]} 23... Bc5 {[%clk
0:04:09.8]} 24. Bxc5 {[%clk 0:00:50.7]} 24... Nxc5 {[%clk 0:04:08.4]} 25. Qxb8
{[%clk 0:00:33.2]} 25... Rxb8+ {[%clk 0:04:08.3]} 26. Ka2 {[%clk 0:00:28.8]}
26... Bxd3 {[%clk 0:04:01.5]} 27. Bxd3 {[%clk 0:00:27]} 27... Nxd3 {[%clk
0:04:01.4]} 28. e4 {[%clk 0:00:25.8]} 28... Nb4+ {[%clk 0:03:56.3]} 29. Ka1
{[%clk 0:00:21.5]} 29... Qd4+ {[%clk 0:03:54.5]} 30. Rc3 {[%clk 0:00:11.5]}
30... Qxc3+ {[%clk 0:03:52.5]} 0-1

[Event "Live Chess"]
[Site "Chess.com"]
[Date "2023.05.21"]
[Round "-"]
[White "LutherSullivan"]
[Black "chessfiction"]
[Result "1-0"]
[WhiteElo "2114"]
[BlackElo "2331"]
[TimeControl "300"]
[EndTime "16:38:19 PDT"]
[Termination "LutherSullivan won by checkmate"]

1. e4 {[%clk 0:04:56.2]} 1... e6 {[%clk 0:04:59.9]} 2. d4 {[%clk 0:04:54.7]}
2... d5 {[%clk 0:04:59.8]} 3. e5 {[%clk 0:04:53.4]} 3... c5 {[%clk 0:04:58.8]}
4. c3 {[%clk 0:04:53]} 4... Nc6 {[%clk 0:04:57.4]} 5. Nf3 {[%clk 0:04:52.6]}
5... Qb6 {[%clk 0:04:56.8]} 6. Be2 {[%clk 0:04:51.3]} 6... Bd7 {[%clk
0:04:56.4]} 7. O-O {[%clk 0:04:49.8]} 7... Nh6 {[%clk 0:04:54.7]} 8. Bxh6 {[%clk
0:04:37.1]} 8... gxh6 {[%clk 0:04:53.2]} 9. Qd2 {[%clk 0:04:33.4]} 9... Rg8
{[%clk 0:04:50.5]} 10. Na3 {[%clk 0:04:30.4]} 10... c4 {[%clk 0:04:44.4]} 11.
Nc2 {[%clk 0:04:25.1]} 11... Be7 {[%clk 0:04:43.3]} 12. Rfb1 {[%clk 0:04:21.3]}
12... Rg6 {[%clk 0:04:39.2]} 13. b3 {[%clk 0:04:18.1]} 13... cxb3 {[%clk
0:04:36.7]} 14. axb3 {[%clk 0:04:12.9]} 14... O-O-O {[%clk 0:04:34.3]} 15. b4
{[%clk 0:04:11.3]} 15... Rdg8 {[%clk 0:04:32.1]} 16. g3 {[%clk 0:04:08.4]} 16...
h5 {[%clk 0:04:30.5]} 17. b5 {[%clk 0:04:05.6]} 17... Na5 {[%clk 0:04:25.3]} 18.
Ne3 {[%clk 0:03:57.2]} 18... h4 {[%clk 0:04:23.3]} 19. c4 {[%clk 0:03:51.6]}
19... Nxc4 {[%clk 0:04:19.2]} 20. Bxc4 {[%clk 0:03:44.6]} 20... dxc4 {[%clk
0:04:19.1]} 21. Nxc4 {[%clk 0:03:43.4]} 21... Qc7 {[%clk 0:04:17]} 22. b6 {[%clk
0:03:36.7]} 22... Qxc4 {[%clk 0:04:10.5]} 23. Rc1 {[%clk 0:03:33.6]} 23... Qc6
{[%clk 0:04:03]} 24. bxa7 {[%clk 0:03:27]} 24... Kc7 {[%clk 0:04:00.4]} 25.
Rxc6+ {[%clk 0:03:20.1]} 25... Bxc6 {[%clk 0:03:58.8]} 26. d5 {[%clk 0:03:09.7]}
26... Bxd5 {[%clk 0:03:54.8]} 27. Qc3+ {[%clk 0:03:03.8]} 27... Kd7 {[%clk
0:03:50.2]} 28. a8=Q {[%clk 0:02:58.7]} 28... Rxa8 {[%clk 0:03:48]} 29. Rxa8
{[%clk 0:02:57.6]} 29... Rg4 {[%clk 0:03:37.2]} 30. Qc8# {[%clk 0:02:53.6]} 1-0

[Event "Live Chess"]
[Site "Chess.com"]
[Date "2023.05.21"]
[Round "-"]
[White "JoeyCage"]
[Black "laminaaprod"]
[Result "1-0"]
[WhiteElo "2303"]
[BlackElo "2230"]
[TimeControl "300"]
[EndTime "16:38:29 PDT"]
[Termination "JoeyCage won by resignation"]

1. e4 {[%clk 0:04:57.4]} 1... e5 {[%clk 0:04:30.5]} 2. Nf3 {[%clk 0:04:55.3]}
2... Nc6 {[%clk 0:04:28.9]} 3. Bb5 {[%clk 0:04:54.1]} 3... Nf6 {[%clk
0:04:24.8]} 4. O-O {[%clk 0:04:52.7]} 4... Be7 {[%clk 0:04:20.3]} 5. Re1 {[%clk
0:04:51.1]} 5... d6 {[%clk 0:04:19.5]} 6. c3 {[%clk 0:04:49.6]} 6... O-O {[%clk
0:04:18.5]} 7. h3 {[%clk 0:04:48]} 7... a6 {[%clk 0:04:03.5]} 8. Ba4 {[%clk
0:04:46.6]} 8... b5 {[%clk 0:04:03.2]} 9. Bc2 {[%clk 0:04:45.3]} 9... Na5 {[%clk
0:04:02.9]} 10. d4 {[%clk 0:04:42.6]} 10... exd4 {[%clk 0:03:55.1]} 11. cxd4
{[%clk 0:04:41.2]} 11... Bb7 {[%clk 0:03:38.5]} 12. Nbd2 {[%clk 0:04:39.5]}
12... Re8 {[%clk 0:02:47.3]} 13. Nf1 {[%clk 0:04:37.6]} 13... c5 {[%clk
0:02:34.5]} 14. Ng3 {[%clk 0:04:34]} 14... cxd4 {[%clk 0:01:49.8]} 15. Nxd4
{[%clk 0:04:31.5]} 15... Nc6 {[%clk 0:01:49.4]} 16. Nxc6 {[%clk 0:04:23.8]}
16... Bxc6 {[%clk 0:01:46.9]} 17. Be3 {[%clk 0:04:22.7]} 17... Rc8 {[%clk
0:01:40.5]} 18. Bd4 {[%clk 0:04:20.7]} 18... Bd7 {[%clk 0:01:35.6]} 19. Qd2
{[%clk 0:04:18.2]} 19... Be6 {[%clk 0:01:27.3]} 20. b3 {[%clk 0:04:15.6]} 20...
d5 {[%clk 0:01:20.3]} 21. e5 {[%clk 0:04:12.5]} 21... Nd7 {[%clk 0:01:14.1]} 22.
f4 {[%clk 0:04:09.9]} 22... Bc5 {[%clk 0:01:00.3]} 23. Rac1 {[%clk 0:04:00.2]}
23... Bxd4+ {[%clk 0:00:43.7]} 24. Qxd4 {[%clk 0:03:58.2]} 24... Qb6 {[%clk
0:00:43.4]} 25. Qxb6 {[%clk 0:03:56.7]} 25... Nxb6 {[%clk 0:00:42.5]} 26. f5
{[%clk 0:03:55.4]} 26... Bd7 {[%clk 0:00:41.5]} 27. Kf2 {[%clk 0:03:36.2]} 27...
Bc6 {[%clk 0:00:36.9]} 28. Kf3 {[%clk 0:03:32.9]} 28... d4+ {[%clk 0:00:36.4]}
29. Be4 {[%clk 0:03:27.9]} 29... Bxe4+ {[%clk 0:00:30.5]} 30. Kxe4 {[%clk
0:03:26.6]} 30... Rcd8 {[%clk 0:00:29.6]} 31. Red1 {[%clk 0:03:21.9]} 31... Rd5
{[%clk 0:00:28.3]} 32. Rxd4 {[%clk 0:03:14.3]} 32... Rdxe5+ {[%clk 0:00:26.6]}
33. Kf3 {[%clk 0:03:13.2]} 33... Re3+ {[%clk 0:00:25.6]} 34. Kf2 {[%clk
0:03:11.9]} 34... f6 {[%clk 0:00:24.9]} 35. Rc7 {[%clk 0:03:07.9]} 35... R3e7
{[%clk 0:00:23.3]} 36. Rc6 {[%clk 0:03:05]} 36... Rb7 {[%clk 0:00:22.2]} 37.
Rdd6 {[%clk 0:03:01.8]} 37... Reb8 {[%clk 0:00:21.9]} 38. Ne4 {[%clk 0:02:57]}
38... Nd7 {[%clk 0:00:19.7]} 39. Rxa6 {[%clk 0:02:51.5]} 39... Ne5 {[%clk
0:00:19.3]} 40. Nc5 {[%clk 0:02:43.6]} 40... Rc7 {[%clk 0:00:18.2]} 41. Ne6
{[%clk 0:02:42.5]} 41... Rc2+ {[%clk 0:00:17.3]} 42. Kg1 {[%clk 0:02:40.5]}
42... Rbc8 {[%clk 0:00:14.8]} 43. Ra7 {[%clk 0:02:38.7]} 43... Rc1+ {[%clk
0:00:09.7]} 44. Kh2 {[%clk 0:02:36.3]} 1-0